bitfinex/quotes_BTCUSD_20250212
["timestamp","ask_amount","ask_price","bid_price","bid_amount"]
[1739380438035,0.0001066,97262.0,97255.0,1.02793912]
[1739380438036,0.000951,97256.0,97255.0,1.02793912]
[1739380438362,0.0001066,97262.0,97257.0,0.15423]
[1739380438515,0.0001066,97262.0,97257.0,0.25673365]
[1739380439084,0.0001066,97262.0,97257.0,0.27973365]
[1739380439637,0.0001066,97262.0,97258.0,0.023]
[1739380439836,0.0001066,97262.0,97260.0,0.023]
[1739380440119,0.1543286,97262.0,97261.0,0.67200365]
[1739380440299,0.1543286,97262.0,97261.0,0.5465]
[1739380440471,0.154232,97256.0,97255.0,0.007]
[1739380441051,0.205632,97261.0,97238.0,0.700759]
[1739380441052,0.154244,97249.0,97238.0,0.700759]
[1739380441432,0.0001066,97262.0,97260.0,0.161225]
[1739380441634,0.0001066,97262.0,97261.0,0.12653164]
[1739380441789,0.0001066,97262.0,97261.0,0.12550365]
[1739380442724,0.0001066,97262.0,97261.0,0.27972765]
[1739380443338,0.0001066,97262.0,97261.0,0.12550365]
[1739380444117,0.0001066,97262.0,97261.0,0.99900365]
[1739380444519,0.0001066,97262.0,97261.0,1.00400365]
[1739380444896,0.0001066,97262.0,97261.0,1.01800365]
[1739380445346,0.0001066,97262.0,97261.0,0.99900365]
[1739380445553,0.0001066,97262.0,97261.0,1.00400365]
[1739380446410,0.0001066,97262.0,97261.0,0.13050365]
[1739380446613,0.0001066,97262.0,97261.0,0.14450365]
[1739380447246,0.0001066,97262.0,97261.0,0.13950365]
[1739380447599,0.0001066,97262.0,97261.0,0.14450365]
[1739380447842,0.0001066,97262.0,97261.0,0.13950365]
[1739380448132,0.0011066,97262.0,97261.0,0.13250365]
[1739380448575,0.0011066,97262.0,97261.0,1.16400365]
[1739380448745,0.0021066,97262.0,97261.0,1.22010365]
[1739380449529,0.0021066,97262.0,97261.0,1.17100365]
[1739380449705,0.0021066,97262.0,97261.0,1.15600365]
[1739380449910,0.0021066,97262.0,97261.0,1.17100365]
[1739380450109,0.0001066,97262.0,97261.0,1.16400365]
[1739380450535,0.0001066,97262.0,97261.0,1.15600365]
[1739380450696,0.0001066,97262.0,97261.0,1.14900365]
[1739380450897,0.0001066,97262.0,97261.0,1.01400365]
[1739380451122,0.0001066,97262.0,97261.0,1.02100365]
[1739380451325,0.0001066,97262.0,97261.0,0.99100365]
[1739380451554,0.1543286,97262.0,97261.0,0.8735]
[1739380452114,0.1543286,97262.0,97261.0,0.8805]
[1739380452355,0.0001066,97275.0,97261.0,0.8805]
[1739380452356,0.205623,97266.0,97261.0,0.8805]
[1739380452781,0.304222,97262.0,97261.0,0.007]
[1739380453055,0.53952565,97262.0,97261.0,0.022]
[1739380453481,0.154227,97259.0,97258.0,0.00022365]
[1739380453659,0.304227,97259.0,97258.0,0.00022365]
[1739380454426,0.40673065,97259.0,97258.0,0.00022365]
[1739380454631,0.54355365,97259.0,97258.0,0.00022365]
[1739380454829,0.154265,97235.0,97234.0,0.08228294]
[1739380455032,0.154265,97235.0,97234.0,0.18478659]
[1739380455253,0.154265,97235.0,97234.0,0.10250365]
[1739380455456,0.15,97243.0,97227.0,0.154277]
[1739380455706,0.154256,97241.0,97232.0,0.023]
[1739380455817,0.154261,97238.0,97234.0,0.023]
[1739380456021,0.15,97248.0,97234.0,0.023]
[1739380456219,0.16050951,97249.0,97234.0,0.023]
[1739380456449,0.1328,97262.0,97236.0,0.023]
[1739380456450,0.154245,97248.0,97236.0,0.023]
[1739380456656,0.0161172,97259.0,97238.0,0.23686388]
[1739380456858,0.155228,97259.0,97249.0,0.023]
[1739380457064,0.205629,97263.0,97249.0,0.023]
[1739380457065,0.205629,97263.0,97251.0,0.023]
[1739380457268,0.0001066,97275.0,97253.0,0.023]
[1739380457489,0.154215,97267.0,97255.0,0.177232]
[1739380457727,0.205622,97266.0,97257.0,0.023]
[1739380457858,0.205622,97266.0,97259.0,0.023]
[1739380458063,0.154221,97263.0,97261.0,0.023]
[1739380458475,0.154221,97263.0,97262.0,0.12550365]
[1739380458693,0.154222,97262.0,97260.0,0.8735]
[1739380459255,0.15,97261.0,97260.0,0.8735]
[1739380461084,0.15,97261.0,97260.0,0.8825]
[1739380461899,0.15,97261.0,97260.0,0.336]
[1739380462474,0.1543245,97265.0,97261.0,0.023]
[1739380462740,0.0001065,97265.0,97263.0,0.023]
[1739380462907,0.0001065,97265.0,97264.0,0.10250365]
[1739380463429,0.0001065,97265.0,97264.0,0.12550365]
[1739380464206,0.0001065,97265.0,97264.0,0.99900365]
[1739380464415,0.0001065,97265.0,97264.0,1.01500365]
[1739380464626,0.0001065,97265.0,97264.0,1.01100365]
[1739380464796,0.0001065,97265.0,97264.0,1.01700365]
[1739380465233,0.0001065,97265.0,97264.0,1.16522265]
[1739380465861,0.0001065,97265.0,97264.0,1.15322265]
[1739380466158,0.0001065,97265.0,97264.0,1.16422265]
[1739380466366,0.1543235,97265.0,97264.0,1.01000365]
[1739380466597,0.0001065,97265.0,97264.0,1.00500365]
[1739380466951,0.0001065,97265.0,97264.0,1.02000365]
[1739380467151,0.0001065,97265.0,97264.0,1.17422265]
[1739380467358,0.0001065,97265.0,97264.0,1.15322265]
[1739380467757,0.0001065,97265.0,97264.0,1.01500365]
[1739380467962,0.0001065,97265.0,97264.0,1.01100365]
[1739380468166,0.0001065,97265.0,97264.0,1.01600365]
[1739380468580,0.1543235,97265.0,97264.0,1.01600365]
[1739380468996,0.0001065,97265.0,97264.0,1.15822265]
[1739380469347,0.0001065,97265.0,97264.0,1.16822265]
[1739380469750,0.0001065,97265.0,97264.0,1.17422265]
[1739380470085,0.0001065,97265.0,97264.0,1.15922265]
[1739380470351,0.0001065,97265.0,97264.0,1.17422265]
[1739380470536,0.0001065,97265.0,97264.0,1.16822265]
[1739380470749,0.0001065,97265.0,97264.0,1.17522265]
[1739380472597,0.0001065,97265.0,97264.0,1.02100365]
[1739380472840,0.1543235,97265.0,97264.0,0.99800365]
[1739380473043,0.0001065,97265.0,97264.0,0.99800365]
[1739380473858,0.0001065,97265.0,97264.0,1.02100365]
[1739380475317,0.0001065,97265.0,97264.0,1.01100365]
[1739380475729,0.0001065,97265.0,97264.0,1.16522265]
[1739380478078,0.0001065,97265.0,97264.0,1.01100365]
[1739380478079,0.1543235,97265.0,97264.0,1.01100365]
[1739380478446,0.1543235,97265.0,97264.0,0.8955]
[1739380479142,0.1543235,97265.0,97264.0,0.99800365]
[1739380479564,0.1543235,97265.0,97264.0,1.00600365]
[1739380479756,0.1543235,97265.0,97264.0,0.99900365]
[1739380479966,0.1543235,97265.0,97264.0,1.00500365]
[1739380480404,0.0001065,97265.0,97264.0,1.00400365]
[1739380480610,0.0001065,97265.0,97264.0,1.00700365]
[1739380481225,0.0001065,97265.0,97264.0,1.00200365]
[1739380481364,0.0001065,97265.0,97264.0,1.15200365]
[1739380481562,0.1543235,97265.0,97264.0,1.16200365]
[1739380481783,0.1543235,97265.0,97264.0,1.15900365]
[1739380482169,0.0001065,97265.0,97264.0,1.15200365]
[1739380482397,0.0001065,97265.0,97264.0,1.16400365]
[1739380482584,0.0001065,97265.0,97264.0,1.32322265]
[1739380484023,0.0001065,97265.0,97264.0,1.14600365]
[1739380484228,0.1543235,97265.0,97264.0,1.0435]
[1739380484659,0.1543235,97265.0,97264.0,0.17]
[1739380485107,0.1543235,97265.0,97264.0,0.02]
[1739380485851,0.15424,97251.0,97250.0,0.5465]
[1739380486189,0.15424,97251.0,97250.0,0.6965]
[1739380487368,0.15424,97251.0,97250.0,0.7005]
[1739380487575,0.15424,97251.0,97250.0,0.82600365]
[1739380488432,0.15424,97251.0,97250.0,0.84000365]
[1739380489127,0.15424,97251.0,97250.0,0.7145]
[1739380490057,0.15424,97251.0,97250.0,0.018]
[1739380490302,0.23144,97251.0,97250.0,0.018]
[1739380490948,0.24281706,97251.0,97250.0,0.018]
[1739380491915,0.24281706,97251.0,97250.0,0.004]
[1739380492120,0.154241,97250.0,97234.0,0.00022365]
[1739380492470,3.629395,97250.0,97234.0,0.00022365]
[1739380492679,0.154241,97250.0,97236.0,0.023]
[1739380492891,0.154241,97250.0,97238.0,0.023]
[1739380493124,0.154241,97250.0,97241.0,0.023]
[1739380493325,0.154241,97250.0,97237.0,0.5465]
[1739380493744,0.155241,97250.0,97237.0,0.5465]
[1739380493971,0.154241,97250.0,97238.0,0.5695]
[1739380494184,0.154241,97250.0,97234.0,0.00022365]
[1739380494383,0.154241,97250.0,97249.0,0.00122365]
[1739380494940,0.383641,97250.0,97249.0,0.00122365]
[1739380495143,1.63501765,97250.0,97249.0,0.00122365]
[1739380495344,1.38353983,97250.0,97249.0,0.00322365]
[1739380495545,1.21200283,97250.0,97249.0,0.00222365]
[1739380495746,1.21200283,97250.0,97234.0,0.00022365]
[1739380495747,0.428765,97235.0,97234.0,0.00022365]
[1739380496088,0.93413665,97235.0,97234.0,0.00022365]
[1739380496289,0.53126865,97235.0,97234.0,0.00022365]
[1739380496467,0.428765,97235.0,97234.0,0.00022365]
[1739380496899,0.432765,97235.0,97234.0,0.00022365]
[1739380497108,0.434765,97235.0,97234.0,0.00022365]
[1739380497263,0.3008858,97235.0,97234.0,0.00022365]
[1739380497441,0.236665,97235.0,97234.0,0.00022365]
[1739380497654,0.162265,97235.0,97234.0,0.00022365]
[1739380498278,0.158265,97235.0,97234.0,0.00022365]
[1739380498648,0.162265,97235.0,97234.0,0.00022365]
[1739380498840,0.158265,97235.0,97234.0,0.00022365]
[1739380499043,0.157265,97235.0,97234.0,0.00022365]
[1739380499470,0.003,97235.0,97234.0,0.6742273]
[1739380500074,0.003,97235.0,97234.0,0.8284943]
[1739380500343,0.003,97235.0,97234.0,1.1554943]
[1739380500549,0.0001065,97265.0,97235.0,0.023]
[1739380500814,0.205645,97255.0,97236.0,1.13026665]
[1739380501006,0.154226,97260.0,97237.0,0.57052825]
[1739380501209,0.205625,97264.0,97239.0,0.228676]
[1739380501342,0.0001065,97265.0,97241.0,0.023]
[1739380501541,0.0001065,97265.0,97245.0,0.023]
[1739380501745,0.205633,97261.0,97250.0,0.023]
[1739380501971,0.0001065,97265.0,97252.0,0.023]
[1739380502171,0.154236,97253.0,97252.0,0.12550365]
[1739380502371,0.154236,97253.0,97252.0,0.5465]
[1739380502903,0.154232,97256.0,97252.0,0.5465]
[1739380503094,0.154232,97257.0,97252.0,0.64900365]
[1739380503304,0.205637,97259.0,97252.0,0.64900365]
[1739380503600,0.154235,97255.0,97252.0,0.65400365]
[1739380503774,0.154231,97257.0,97252.0,0.65400365]
[1739380504150,0.154236,97253.0,97252.0,0.5515]
[1739380504775,0.154236,97253.0,97252.0,0.5475]
[1739380504972,0.154236,97253.0,97252.0,0.5525]
[1739380505414,0.154236,97253.0,97252.0,0.67800365]
[1739380505723,0.154235,97255.0,97252.0,0.67300365]
[1739380505908,0.154236,97253.0,97252.0,0.67900365]
[1739380506117,0.154235,97255.0,97252.0,0.67900365]
[1739380506329,0.154235,97255.0,97253.0,0.5465]
[1739380506535,0.20564,97257.0,97253.0,0.5465]
[1739380506733,0.01194963,97264.0,97253.0,0.700735]
[1739380506941,0.0001065,97255.0,97254.0,0.28076683]
[1739380507082,0.0001065,97255.0,97254.0,0.82623865]
[1739380509706,0.0001065,97255.0,97254.0,1.16723865]
[1739380509937,0.0001065,97255.0,97254.0,1.01300365]
[1739380510194,0.0001065,97255.0,97254.0,1.16723865]
[1739380510440,0.0001065,97255.0,97254.0,1.17023865]
[1739380510681,0.0001065,97255.0,97254.0,1.16723865]
[1739380510929,0.0001065,97255.0,97254.0,1.17223865]
[1739380512135,0.0001065,97255.0,97254.0,1.15823865]
[1739380512437,0.0001065,97255.0,97254.0,1.32023865]
[1739380512680,0.0001065,97255.0,97254.0,1.31523865]
[1739380512932,0.0001065,97255.0,97254.0,1.32223865]
[1739380513165,0.0001065,97255.0,97254.0,1.31523865]
[1739380513402,0.0001065,97255.0,97254.0,1.30923865]
[1739380513655,0.0001065,97255.0,97254.0,1.31823865]
[1739380513858,0.0001065,97255.0,97254.0,1.32523865]
[1739380514096,0.0001065,97255.0,97254.0,1.31823865]
[1739380514580,0.0001065,97255.0,97254.0,1.32523865]
[1739380514841,0.0001065,97255.0,97254.0,1.31023865]
[1739380515347,0.0001065,97255.0,97254.0,1.32523865]
[1739380515828,0.0001065,97255.0,97254.0,1.30323865]
[1739380516051,0.0001065,97255.0,97254.0,1.32523865]
[1739380516307,0.0001065,97255.0,97254.0,0.99100365]
[1739380516545,0.0001065,97255.0,97254.0,0.98300365]
[1739380516777,0.0001065,97255.0,97254.0,0.99100365]
[1739380517273,0.0001065,97255.0,97254.0,1.17523865]
[1739380517514,0.0001065,97255.0,97254.0,1.16823865]
[1739380517692,0.0001065,97255.0,97254.0,1.17423865]
[1739380517957,0.0001065,97255.0,97254.0,1.15923865]
[1739380518173,0.0001065,97255.0,97254.0,1.17023865]
[1739380518639,0.1543395,97255.0,97254.0,1.01600365]
[1739380518830,0.1543395,97255.0,97254.0,1.00500365]
[1739380519043,0.1543395,97255.0,97254.0,0.99100365]
[1739380519246,0.1543395,97255.0,97254.0,0.342]
[1739380519469,0.15426,97238.0,97237.0,0.5465]
[1739380519834,0.154262,97237.0,97224.0,0.5465]
[1739380520194,0.154262,97237.0,97210.0,0.327]
[1739380520195,0.235962,97237.0,97209.0,0.08228294]
[1739380521964,0.385962,97237.0,97236.0,6.5e-07]
[1739380522145,0.800528,97237.0,97236.0,6.5e-07]
[1739380522350,0.800528,97237.0,97209.0,0.08228294]
[1739380522351,0.304265,97235.0,97234.0,4.064e-05]
[1739380522553,0.418739,97235.0,97234.0,4.064e-05]
[1739380522903,0.579928,97235.0,97234.0,4.064e-05]
[1739380523065,0.487768,97235.0,97234.0,4.064e-05]
[1739380523511,0.469768,97235.0,97234.0,4.064e-05]
[1739380523714,0.304265,97235.0,97234.0,4.064e-05]
[1739380524483,0.57002,97235.0,97234.0,0.00104064]
[1739380524949,0.477882,97235.0,97234.0,0.00104064]
[1739380525147,0.441609,97235.0,97234.0,0.00104064]
[1739380525346,0.310265,97235.0,97234.0,0.00104064]
[1739380525654,0.43639565,97235.0,97210.0,0.5465]
[1739380525805,0.43639565,97235.0,97209.0,0.08228294]
[1739380525806,0.233905,97210.0,97209.0,0.08228294]
[1739380526011,0.154325,97197.0,97196.0,0.5465]
[1739380528216,0.168325,97197.0,97196.0,0.5475]
[1739380528835,0.17949934,97197.0,97196.0,0.5475]
[1739380529236,0.205764,97199.0,97196.0,0.5475]
[1739380529237,0.15,97200.0,97196.0,0.5475]
[1739380529454,0.154325,97197.0,97196.0,0.5475]
[1739380530282,0.154325,97197.0,97196.0,0.5465]
[1739380530480,0.154325,97197.0,97196.0,0.5475]
[1739380531123,0.154325,97197.0,97196.0,0.5465]
[1739380531335,0.157325,97197.0,97196.0,0.5465]
[1739380531525,0.161325,97197.0,97196.0,0.5465]
[1739380531729,0.158325,97197.0,97196.0,0.54672365]
[1739380532030,0.158325,97197.0,97196.0,0.0036467]
[1739380532031,0.52497,97197.0,97196.0,0.0036467]
[1739380532255,1.53383165,97197.0,97196.0,7e-07]
[1739380532457,0.50062865,97197.0,97196.0,7e-07]
[1739380532793,0.51275514,97197.0,97196.0,7e-07]
[1739380533191,0.51475514,97197.0,97196.0,7e-07]
[1739380533497,0.53996845,97197.0,97196.0,7e-07]
[1739380533722,0.57370653,97197.0,97196.0,7e-07]
[1739380533875,0.57758004,97197.0,97196.0,7e-07]
[1739380534051,0.60279335,97197.0,97196.0,7e-07]
[1739380534253,0.60279335,97197.0,97162.0,0.5465]
[1739380534254,0.0763,97162.0,97153.0,0.5465]
[1739380534457,0.2263,97162.0,97160.0,0.00022365]
[1739380534655,0.2263,97162.0,97161.0,0.00189141]
[1739380534881,0.304382,97161.0,97160.0,0.00022365]
[1739380535091,0.452743,97161.0,97160.0,0.00022365]
[1739380535250,0.304382,97161.0,97160.0,0.00022365]
[1739380535440,0.31558196,97161.0,97160.0,0.00022365]
[1739380536259,0.87478326,97161.0,97159.0,3e-07]
[1739380536498,0.41808561,97161.0,97159.0,3e-07]
[1739380537105,0.756631,97160.0,97159.0,3e-07]
[1739380537480,1.00913465,97160.0,97159.0,3e-07]
[1739380537744,0.01,97152.0,97151.0,8.1e-07]
[1739380537878,0.15,97150.0,97149.0,4.6e-07]
[1739380538079,0.25250365,97150.0,97149.0,4.6e-07]
[1739380538482,0.26863857,97150.0,97149.0,4.6e-07]
[1739380538895,0.36133857,97150.0,97149.0,4.6e-07]
[1739380539720,0.51873857,97150.0,97149.0,4.6e-07]
[1739380540045,0.52373857,97150.0,97149.0,4.6e-07]
[1739380540450,0.52573857,97150.0,97149.0,4.6e-07]
[1739380540581,0.52686213,97150.0,97149.0,4.6e-07]
[1739380540787,0.54086213,97150.0,97149.0,4.6e-07]
[1739380540986,0.54786213,97150.0,97149.0,4.6e-07]
[1739380541186,0.53786213,97150.0,97149.0,4.6e-07]
[1739380541393,0.20265848,97150.0,97149.0,4.6e-07]
[1739380542244,0.19565848,97150.0,97149.0,4.6e-07]
[1739380542418,0.20265848,97150.0,97149.0,4.6e-07]
[1739380542632,0.18865848,97150.0,97149.0,4.6e-07]
[1739380542823,0.18165848,97150.0,97149.0,4.6e-07]
[1739380543050,0.19965848,97150.0,97149.0,4.6e-07]
[1739380543221,0.19565848,97150.0,97149.0,4.6e-07]
[1739380543428,0.18165848,97150.0,97149.0,4.6e-07]
[1739380543606,0.18665848,97150.0,97149.0,4.6e-07]
[1739380543954,0.16952356,97150.0,97149.0,4.6e-07]
[1739380544157,0.17452356,97150.0,97149.0,4.6e-07]
[1739380544367,0.17052356,97150.0,97149.0,4.6e-07]
[1739380544567,0.1644,97150.0,97149.0,0.54650046]
[1739380544771,0.1644,97150.0,97149.0,0.5484173]
[1739380545378,0.1594,97150.0,97149.0,0.5484173]
[1739380545679,0.1624,97150.0,97149.0,0.5484173]
[1739380545974,0.1574,97150.0,97149.0,0.5484173]
[1739380546216,0.1604,97150.0,97149.0,0.5484173]
[1739380546418,0.1614,97150.0,97149.0,0.5484173]
[1739380546773,0.1584,97150.0,97149.0,0.5484173]
[1739380546978,0.1604,97150.0,97149.0,0.5484173]
[1739380548210,0.1604,97150.0,97149.0,0.5384173]
[1739380550046,0.3104,97150.0,97149.0,0.5384173]
[1739380550626,0.3084,97150.0,97149.0,0.5384173]
[1739380550875,0.3104,97150.0,97149.0,0.5384173]
[1739380551813,0.304417,97139.0,97136.0,0.00022365]
[1739380552011,1.16576865,97139.0,97136.0,0.00022365]
[1739380552215,0.76755865,97139.0,97136.0,0.00022365]
[1739380552603,0.40692065,97139.0,97136.0,0.00022365]
[1739380552804,0.57580465,97139.0,97136.0,0.00022365]
[1739380553052,0.56178465,97139.0,97136.0,0.00022365]
[1739380553207,0.40992065,97139.0,97136.0,0.00022365]
[1739380553419,0.41692065,97139.0,97136.0,0.00022365]
[1739380553674,1.04468265,97139.0,97136.0,0.00022365]
[1739380554052,0.79808565,97139.0,97136.0,0.00022365]
[1739380554284,0.76780565,97139.0,97136.0,0.00022365]
[1739380554683,0.66849765,97139.0,97136.0,0.00022365]
[1739380555079,0.66549765,97139.0,97136.0,0.00022365]
[1739380555314,0.67049765,97139.0,97136.0,0.00022365]
[1739380555502,0.42335817,97139.0,97136.0,0.00022365]
[1739380555646,0.41835817,97139.0,97136.0,0.00022365]
[1739380555858,0.33285452,97139.0,97136.0,0.00022365]
[1739380556286,0.32085452,97139.0,97136.0,0.00022365]
[1739380556485,0.76474353,97139.0,97136.0,0.00022365]
[1739380556707,0.74032417,97139.0,97136.0,0.00022365]
[1739380556932,0.74532417,97139.0,97136.0,0.00022365]
[1739380558169,0.74032417,97139.0,97136.0,0.00022365]
[1739380558512,0.74532417,97139.0,97136.0,0.00022365]
[1739380559108,0.43635817,97139.0,97136.0,0.00022365]
[1739380559789,0.33385452,97139.0,97136.0,0.00022365]
[1739380560624,0.18385452,97139.0,97136.0,0.00022365]
[1739380560840,0.17085452,97139.0,97136.0,0.00022365]
[1739380561049,0.154417,97139.0,97136.0,0.00022365]
[1739380561523,0.160417,97139.0,97136.0,0.00022365]
[1739380561722,0.154417,97139.0,97138.0,0.49555011]
[1739380561931,0.154417,97139.0,97138.0,0.49701105]
[1739380562137,0.167417,97139.0,97138.0,0.49701105]
[1739380562635,0.154417,97139.0,97138.0,0.49701105]
[1739380563051,0.155417,97139.0,97138.0,0.49901105]
[1739380563257,0.305417,97139.0,97138.0,0.49901105]
[1739380563496,0.77708504,97139.0,97138.0,0.49701105]
[1739380563721,0.85448504,97139.0,97138.0,0.49701105]
[1739380563925,0.85548504,97139.0,97138.0,0.49901105]
[1739380564567,0.76203265,97139.0,97138.0,0.49891909]
[1739380564716,0.76203265,97139.0,97138.0,0.39597409]
[1739380564924,0.76203265,97139.0,97138.0,0.37538509]
[1739380565126,0.76103265,97139.0,97138.0,0.37338509]
[1739380565462,0.76203265,97139.0,97138.0,0.00146094]
[1739380565789,0.304421,97137.0,97136.0,0.00022365]
[1739380566002,0.40692465,97137.0,97136.0,0.00022365]
[1739380566202,0.154471,97105.0,97104.0,0.37192415]
[1739380566413,0.01,97134.0,97093.0,0.37192415]
[1739380566608,0.01,97134.0,97092.0,0.00022386]
[1739380566609,0.154481,97099.0,97094.0,0.37192415]
[1739380566821,0.154481,97099.0,97095.0,0.37192415]
[1739380568292,0.154481,97099.0,97098.0,0.10272751]
[1739380568524,0.155481,97099.0,97098.0,0.10672751]
[1739380568929,0.154481,97099.0,97098.0,0.10272751]
[1739380569318,0.154481,97099.0,97098.0,0.00422386]
[1739380569319,0.155481,97099.0,97098.0,0.00422386]
[1739380569532,0.155481,97099.0,97098.0,0.00576962]
[1739380569774,0.21740966,97103.0,97098.0,0.00176962]
[1739380570128,0.155481,97099.0,97098.0,0.00576962]
[1739380571879,0.154481,97099.0,97098.0,0.00176962]
[1739380572536,0.155481,97099.0,97098.0,0.00276962]
[1739380573076,0.154481,97099.0,97098.0,0.00176962]
[1739380573420,0.001,97099.0,97098.0,0.10527327]
[1739380574734,0.154481,97099.0,97098.0,0.47619742]
[1739380575119,0.155481,97099.0,97098.0,0.48019742]
[1739380575301,0.155481,97099.0,97098.0,0.37769377]
[1739380575501,0.155481,97099.0,97098.0,0.37369377]
[1739380575723,0.154481,97099.0,97098.0,0.37369377]
[1739380575957,0.156481,97099.0,97098.0,0.37869377]
[1739380576354,0.155481,97099.0,97098.0,0.37369377]
[1739380576773,0.156481,97099.0,97098.0,0.37869377]
[1739380577152,0.155481,97099.0,97098.0,0.37869377]
[1739380578118,0.154481,97099.0,97098.0,0.00176962]
[1739380578322,0.25798465,97099.0,97098.0,0.00476962]
[1739380578534,0.25798465,97099.0,97098.0,0.00322386]
[1739380578668,0.40798465,97099.0,97098.0,0.00022386]
[1739380579009,0.40698465,97099.0,97098.0,0.00022386]
[1739380579240,0.4311274,97099.0,97098.0,0.00022386]
[1739380579531,0.4403321,97099.0,97098.0,0.00022386]
[1739380579944,0.4483321,97099.0,97098.0,0.00022386]
[1739380580366,0.4311274,97099.0,97098.0,0.00022386]
[1739380580946,0.4341274,97099.0,97098.0,0.00022386]
[1739380581124,0.4231274,97099.0,97098.0,0.00022386]
[1739380581340,0.4311274,97099.0,97098.0,0.00022386]
[1739380581509,0.4351274,97099.0,97098.0,0.00022386]
[1739380581710,0.4311274,97099.0,97098.0,0.00022386]
[1739380581915,0.4231274,97099.0,97098.0,0.00022386]
[1739380582124,0.32362375,97099.0,97098.0,0.00022386]
[1739380582684,0.33162375,97099.0,97098.0,0.00022386]
[1739380582890,0.5105381,97099.0,97098.0,0.00022386]
[1739380583109,0.5105381,97099.0,97098.0,8.6e-07]
[1739380583316,0.4341274,97099.0,97098.0,8.6e-07]
[1739380583517,0.42498465,97099.0,97098.0,8.6e-07]
[1739380583697,0.42798465,97099.0,97098.0,8.6e-07]
[1739380584117,0.41698465,97099.0,97098.0,8.6e-07]
[1739380584418,0.45605736,97099.0,97098.0,8.6e-07]
[1739380584717,0.304481,97099.0,97098.0,8.6e-07]
[1739380584855,0.311481,97099.0,97098.0,8.6e-07]
[1739380585057,0.319481,97099.0,97098.0,8.6e-07]
[1739380585258,0.49852868,97099.0,97098.0,8.6e-07]
[1739380585457,0.41398465,97099.0,97098.0,8.6e-07]
[1739380585664,0.42798465,97099.0,97098.0,8.6e-07]
[1739380586556,0.42098465,97099.0,97098.0,8.6e-07]
[1739380586784,0.42798465,97099.0,97098.0,8.6e-07]
[1739380586998,0.42098465,97099.0,97098.0,8.6e-07]
[1739380587175,0.40698465,97099.0,97098.0,8.6e-07]
[1739380587338,0.41398465,97099.0,97098.0,8.6e-07]
[1739380587539,0.51763144,97099.0,97098.0,8.6e-07]
[1739380587738,0.42798465,97099.0,97098.0,8.6e-07]
[1739380587933,0.43012895,97099.0,97098.0,8.6e-07]
[1739380588156,0.3346253,97099.0,97098.0,8.6e-07]
[1739380588585,0.3416253,97099.0,97098.0,8.6e-07]
[1739380588735,0.3276253,97099.0,97098.0,8.6e-07]
[1739380588936,0.3416253,97099.0,97098.0,8.6e-07]
[1739380589340,0.1916253,97099.0,97098.0,8.6e-07]
[1739380589545,0.0371443,97099.0,97075.0,0.32237273]
[1739380589722,0.154529,97070.0,97068.0,0.32237273]
[1739380589940,0.154527,97070.0,97069.0,0.10250365]
[1739380590495,0.206034,97072.0,97068.0,0.32237273]
[1739380590496,0.154529,97069.0,97068.0,0.32237273]
[1739380590896,0.206034,97071.0,97062.0,0.06016086]
[1739380590897,0.154538,97063.0,97062.0,0.06016086]
[1739380592911,0.155538,97063.0,97062.0,0.06016086]
[1739380593452,0.154538,97063.0,97062.0,0.06016086]
[1739380593727,0.17072149,97069.0,97063.0,0.154538]
[1739380593932,0.17072149,97069.0,97062.0,0.16266451]
[1739380593933,0.002,97069.0,97064.0,0.25703865]
[1739380594140,0.20603,97073.0,97065.0,0.154535]
[1739380594342,0.154526,97071.0,97066.0,0.10150365]
[1739380594545,0.154522,97074.0,97068.0,0.15453]
[1739380594751,0.154519,97075.0,97069.0,0.25703165]
[1739380594950,0.154516,97077.0,97071.0,0.154525]
[1739380595130,0.154516,97077.0,97072.0,0.10150365]
[1739380595636,0.154522,97073.0,97072.0,0.42387638]
[1739380595840,0.154522,97073.0,97072.0,0.32237273]
[1739380597668,0.155522,97073.0,97072.0,0.32937273]
[1739380598292,0.154522,97073.0,97072.0,0.32237273]
[1739380598497,0.304538,97063.0,97061.0,0.00022386]
[1739380599781,0.306538,97063.0,97061.0,0.00022386]
[1739380600213,0.08228294,97052.0,97040.0,0.0001067]
[1739380600364,0.488522,97052.0,97040.0,0.0001067]
[1739380600569,0.304573,97041.0,97040.0,0.0001067]
[1739380602206,0.49897665,97041.0,97040.0,0.0011067]
[1739380602528,1.03221672,97041.0,97040.0,0.0011067]
[1739380602687,1.04658016,97041.0,97040.0,0.0011067]
[1739380603090,0.94907651,97041.0,97040.0,7e-07]
[1739380603391,0.37491951,97041.0,97007.0,7e-05]
[1739380603587,0.154626,97008.0,97007.0,7e-05]
[1739380603996,0.154643,96997.0,96996.0,0.0449767]
[1739380605560,0.15464,97000.0,96996.0,0.0449767]
[1739380605764,0.154639,97001.0,96996.0,0.0449767]
[1739380606069,0.001,97008.0,97007.0,0.154628]
[1739380606186,0.001,97008.0,97007.0,0.60250438]
[1739380606386,0.002,97008.0,97007.0,0.60250438]
[1739380606599,0.001,97008.0,97007.0,0.60250438]
[1739380607029,0.01440199,97023.0,97007.0,0.42487638]
[1739380607227,0.15,97026.0,97008.0,0.42487638]
[1739380607471,0.15,97026.0,97009.0,0.32037273]
[1739380607472,0.206134,97024.0,97009.0,0.32037273]
[1739380607686,0.206156,97014.0,96997.0,0.32037273]
[1739380607894,0.16441198,97026.0,97004.0,0.206176]
[1739380608030,0.154613,97016.0,97007.0,0.206168]
[1739380608236,0.154611,97018.0,97008.0,0.10250365]
[1739380608470,0.01441198,97026.0,97008.0,0.10250365]
[1739380608676,0.206121,97030.0,97008.0,0.42287638]
[1739380609040,0.001,97014.0,97009.0,0.32037273]
[1739380609513,0.154628,97007.0,97000.0,0.32037273]
[1739380609739,0.154635,97002.0,97001.0,0.10250365]
[1739380610020,0.15465,96993.0,96988.0,0.32037273]
[1739380610219,0.001,97014.0,96989.0,0.10250365]
[1739380610522,0.154648,96995.0,96989.0,0.10250365]
[1739380610693,0.154649,96994.0,96989.0,0.10250365]
[1739380610864,0.0816,97019.0,96989.0,0.10250365]
[1739380611060,0.154647,96995.0,96989.0,0.10250365]
[1739380611267,0.154648,96994.0,96989.0,0.10250365]
[1739380611468,0.154645,96997.0,96989.0,0.10250365]
[1739380611698,0.154645,96997.0,96990.0,0.154654]
[1739380612064,0.0816,97019.0,96991.0,0.10250365]
[1739380612206,0.15565,96993.0,96991.0,0.10250365]
[1739380612408,0.15465,96993.0,96991.0,0.10250365]
[1739380612836,0.156648,96995.0,96991.0,0.10250365]
[1739380613207,0.156648,96995.0,96991.0,0.42287638]
[1739380613437,0.15565,96993.0,96991.0,0.42287638]
[1739380613635,0.206189,96999.0,96991.0,0.42287638]